[Event "Titled Tuesday Blitz February 21 Early 2023"]
[White "Mitrabha, Guha"]
[Black "Zemlyanskii, Ivan"]
[WhiteFideId "5057000"]
[BlackFideId "24249971"]
[WhiteElo "2507"]
[BlackElo "2300"]
[Result "0-1"]
[Round "09"]
[TimeControl "180+2"]
[Date "2023.02.21"]
[WhiteClock "0:00:25"]
[BlackClock "0:00:04"]

1. d4 {[%clk 0:03:00]}  Nc6 {[%clk 0:02:59]} 2. Nf3 {[%clk 0:02:52]}  d6 {[%clk 0:02:56]} 3. d5 {[%clk 0:02:51]}  Ne5 {[%clk 0:02:50]} 4. Nxe5 {[%clk 0:02:51]}  dxe5 {[%clk 0:02:51]} 5. e4 {[%clk 0:02:52]}  e6 {[%clk 0:02:49]} 6. Nc3 {[%clk 0:02:50]}  Bb4 {[%clk 0:02:46]} 7. Bd2 {[%clk 0:02:44]}  Nf6 {[%clk 0:02:43]} 8. Bb5+ {[%clk 0:02:43]}  Bd7 {[%clk 0:02:41]} 9. dxe6 {[%clk 0:02:43]}  fxe6 {[%clk 0:02:34]} 10. Bd3 {[%clk 0:02:42]}  Bc6 {[%clk 0:02:30]} 11. Qe2 {[%clk 0:02:42]}  Qe7 {[%clk 0:02:27]} 12. O-O-O {[%clk 0:02:37]}  O-O-O {[%clk 0:02:24]} 13. f3 {[%clk 0:02:35]}  Nd7 {[%clk 0:02:08]} 14. Bb5 {[%clk 0:02:35]}  Bxb5 {[%clk 0:01:40]} 15. Qxb5 {[%clk 0:02:36]}  a6 {[%clk 0:01:39]} 16. Qa4 {[%clk 0:02:30]}  Nc5 {[%clk 0:01:35]} 17. Qxb4 {[%clk 0:02:28]}  Nd3+ {[%clk 0:01:35]} 18. cxd3 {[%clk 0:02:29]}  Qxb4 {[%clk 0:01:36]} 19. Be3 {[%clk 0:02:29]}  Rd7 {[%clk 0:01:33]} 20. Rd2 {[%clk 0:02:29]}  Rhd8 {[%clk 0:01:27]} 21. Rhd1 {[%clk 0:02:30]}  h6 {[%clk 0:01:27]} 22. Kb1 {[%clk 0:02:29]}  Rd6 {[%clk 0:01:14]} 23. Ne2 {[%clk 0:02:28]}  Qb5 {[%clk 0:01:11]} 24. Nc1 {[%clk 0:02:27]}  g5 {[%clk 0:01:06]} 25. Rc2 {[%clk 0:02:25]}  b6 {[%clk 0:01:03]} 26. Rc3 {[%clk 0:02:21]}  Kb7 {[%clk 0:01:02]} 27. h3 {[%clk 0:02:18]}  Qd7 {[%clk 0:00:50]} 28. Rc2 {[%clk 0:02:16]}  Qg7 {[%clk 0:00:48]} 29. Rdd2 {[%clk 0:02:11]}  h5 {[%clk 0:00:48]} 30. Rc3 {[%clk 0:02:08]}  g4 {[%clk 0:00:47]} 31. fxg4 {[%clk 0:02:08]}  hxg4 {[%clk 0:00:48]} 32. h4 {[%clk 0:02:09]}  Rh8 {[%clk 0:00:40]} 33. Bg5 {[%clk 0:02:05]}  Rf8 {[%clk 0:00:40]} 34. Rcc2 {[%clk 0:01:58]}  g3 {[%clk 0:00:30]} 35. Rd1 {[%clk 0:01:57]}  Qg6 {[%clk 0:00:26]} 36. Be7 {[%clk 0:01:47]}  Rdd8 {[%clk 0:00:26]} 37. Bxd8 {[%clk 0:01:47]}  Rxd8 {[%clk 0:00:26]} 38. Rh1 {[%clk 0:01:48]}  Rh8 {[%clk 0:00:25]} 39. Ne2 {[%clk 0:01:28]}  Qg4 {[%clk 0:00:25]} 40. Rhc1 {[%clk 0:01:21]}  Rh7 {[%clk 0:00:22]} 41. Ng1 {[%clk 0:01:19]}  Qxh4 {[%clk 0:00:20]} 42. Nf3 {[%clk 0:01:20]}  Qf4 {[%clk 0:00:21]} 43. a3 {[%clk 0:01:20]}  Qe3 {[%clk 0:00:19]} 44. Nxe5 {[%clk 0:01:14]}  Qd4 {[%clk 0:00:19]} 45. Nc6 {[%clk 0:01:14]}  Qxd3 {[%clk 0:00:19]} 46. e5 {[%clk 0:01:12]}  Rd7 {[%clk 0:00:16]} 47. Ka1 {[%clk 0:01:11]}  Qe4 {[%clk 0:00:16]} 48. Ka2 {[%clk 0:00:58]}  a5 {[%clk 0:00:16]} 49. b4 {[%clk 0:00:52]}  axb4 {[%clk 0:00:15]} 50. axb4 {[%clk 0:00:53]}  Qd5+ {[%clk 0:00:07]} 51. Kb2 {[%clk 0:00:52]}  Qe4 {[%clk 0:00:07]} 52. Ra1 {[%clk 0:00:26]}  Qxc6 {[%clk 0:00:05]} 53. Ra7+ {[%clk 0:00:27]}  Kxa7 {[%clk 0:00:05]} 54. Rxc6 {[%clk 0:00:28]}  Kb7 {[%clk 0:00:04]} 55. Rxe6 {[%clk 0:00:27]}  Rd2+ {[%clk 0:00:05]} 56. Kc3 {[%clk 0:00:28]}  Rxg2 {[%clk 0:00:06]} 57. Rg6 {[%clk 0:00:28]}  Rg1 {[%clk 0:00:04]} 58. b5 {[%clk 0:00:27]}  Kc8 {[%clk 0:00:02]} 59. Rg7 {[%clk 0:00:27]}  Kd8 {[%clk 0:00:02]} 60. e6 {[%clk 0:00:27]}  g2 {[%clk 0:00:02]} 61. Kb2 {[%clk 0:00:27]}  Ke8 {[%clk 0:00:03]} 62. Kc2 {[%clk 0:00:27]}  Ra1 {[%clk 0:00:02]} 63. Rg8+ {[%clk 0:00:22]}  Ke7 {[%clk 0:00:02]} 64. Rg7+ {[%clk 0:00:23]}  Kxe6 {[%clk 0:00:03]} 65. Rxc7 {[%clk 0:00:24]}  g1=Q {[%clk 0:00:03]} 66. Rc6+ {[%clk 0:00:25]}  Kd5 {[%clk 0:00:04]} 0-1


[Site "https://www.chess.com"]

[Event "Titled Tuesday Blitz February 21 Early 2023"]
[White "Ter-Sahakyan, Samvel"]
[Black "Kilic, Eray"]
[WhiteFideId "13302531"]
[BlackFideId "44517173"]
[WhiteElo "2617"]
[BlackElo "2414"]
[Result "1-0"]
[Round "09"]
[TimeControl "180+2"]
[Date "2023.02.21"]
[WhiteClock "0:00:05"]
[BlackClock "0:00:06"]

1. d4 {[%clk 0:02:59]}  Nf6 {[%clk 0:02:59]} 2. c4 {[%clk 0:02:59]}  e6 {[%clk 0:02:54]} 3. Nf3 {[%clk 0:02:59]}  b6 {[%clk 0:02:52]} 4. g3 {[%clk 0:02:58]}  Bb7 {[%clk 0:02:53]} 5. Bg2 {[%clk 0:02:59]}  Be7 {[%clk 0:02:54]} 6. O-O {[%clk 0:02:59]}  O-O {[%clk 0:02:54]} 7. h4 {[%clk 0:02:59]}  Qc8 {[%clk 0:02:52]} 8. Nc3 {[%clk 0:02:48]}  Ne4 {[%clk 0:02:49]} 9. Qc2 {[%clk 0:02:48]}  Nxc3 {[%clk 0:02:48]} 10. bxc3 {[%clk 0:02:47]}  f5 {[%clk 0:02:47]} 11. d5 {[%clk 0:02:45]}  Na6 {[%clk 0:02:42]} 12. Nd4 {[%clk 0:02:30]}  Nc5 {[%clk 0:02:39]} 13. a4 {[%clk 0:02:21]}  d6 {[%clk 0:02:08]} 14. Ba3 {[%clk 0:02:07]}  e5 {[%clk 0:02:04]} 15. Bxc5 {[%clk 0:02:07]}  dxc5 {[%clk 0:01:55]} 16. Ne6 {[%clk 0:02:06]}  Rf6 {[%clk 0:01:55]} 17. a5 {[%clk 0:01:41]}  Bd6 {[%clk 0:01:49]} 18. Bh3 {[%clk 0:00:53]}  g6 {[%clk 0:01:42]} 19. e4 {[%clk 0:00:47]}  Rxe6 {[%clk 0:01:29]} 20. dxe6 {[%clk 0:00:47]}  Bxe4 {[%clk 0:01:29]} 21. Qe2 {[%clk 0:00:48]}  Qe8 {[%clk 0:01:26]} 22. Bg2 {[%clk 0:00:36]}  Bxg2 {[%clk 0:01:23]} 23. Kxg2 {[%clk 0:00:37]}  Qxe6 {[%clk 0:01:23]} 24. axb6 {[%clk 0:00:36]}  cxb6 {[%clk 0:01:23]} 25. Ra6 {[%clk 0:00:36]}  e4 {[%clk 0:01:09]} 26. Rfa1 {[%clk 0:00:36]}  f4 {[%clk 0:00:34]} 27. f3 {[%clk 0:00:33]}  exf3+ {[%clk 0:00:31]} 28. Qxf3 {[%clk 0:00:34]}  Rf8 {[%clk 0:00:31]} 29. Rxa7 {[%clk 0:00:31]}  fxg3 {[%clk 0:00:26]} 30. Ra8 {[%clk 0:00:31]}  h5 {[%clk 0:00:11]} 31. Rxf8+ {[%clk 0:00:24]}  Bxf8 {[%clk 0:00:12]} 32. Qd5 {[%clk 0:00:20]}  Qxd5+ {[%clk 0:00:11]} 33. cxd5 {[%clk 0:00:21]}  Bd6 {[%clk 0:00:11]} 34. Ra6 {[%clk 0:00:19]}  Be5 {[%clk 0:00:11]} 35. c4 {[%clk 0:00:16]}  Bf6 {[%clk 0:00:04]} 36. Rxb6 {[%clk 0:00:13]}  Bxh4 {[%clk 0:00:04]} 37. Rxg6+ {[%clk 0:00:13]}  Kh7 {[%clk 0:00:04]} 38. Re6 {[%clk 0:00:13]}  Kg7 {[%clk 0:00:04]} 39. d6 {[%clk 0:00:13]}  Kf7 {[%clk 0:00:04]} 40. Re5 {[%clk 0:00:12]}  Bf6 {[%clk 0:00:01]} 41. Rxc5 {[%clk 0:00:11]}  Ke6 {[%clk 0:00:02]} 42. Rd5 {[%clk 0:00:11]}  Bd8 {[%clk 0:00:02]} 43. Kxg3 {[%clk 0:00:11]}  h4+ {[%clk 0:00:02]} 44. Kg4 {[%clk 0:00:11]}  Kd7 {[%clk 0:00:03]} 45. Rd3 {[%clk 0:00:07]}  Kc6 {[%clk 0:00:04]} 46. Kf5 {[%clk 0:00:07]}  h3 {[%clk 0:00:03]} 47. Rxh3 {[%clk 0:00:06]}  Kxd6 {[%clk 0:00:04]} 48. Rd3+ {[%clk 0:00:06]}  Kc7 {[%clk 0:00:05]} 49. Ke6 {[%clk 0:00:06]}  Bg5 {[%clk 0:00:04]} 50. Kd5 {[%clk 0:00:06]}  Bf4 {[%clk 0:00:04]} 51. c5 {[%clk 0:00:07]}  Bh2 {[%clk 0:00:04]} 52. Rf3 {[%clk 0:00:07]}  Kd7 {[%clk 0:00:04]} 53. Rf7+ {[%clk 0:00:07]}  Kc8 {[%clk 0:00:04]} 54. Kc6 {[%clk 0:00:06]}  Kb8 {[%clk 0:00:05]} 55. Rf8+ {[%clk 0:00:06]}  Ka7 {[%clk 0:00:06]} 56. Kd7 {[%clk 0:00:06]}  Bf4 {[%clk 0:00:06]} 57. Rxf4 {[%clk 0:00:05]} 1-0


[Site "https://www.chess.com"]

[Event "Titled Tuesday Blitz February 21 Early 2023"]
[White "Livaic, Leon"]
[Black "Ambartsumova, Karina"]
[WhiteFideId "14531534"]
[BlackFideId "4166299"]
[WhiteElo "2579"]
[BlackElo "2393"]
[Result "1-0"]
[Round "09"]
[TimeControl "180+2"]
[Date "2023.02.21"]
[WhiteClock "0:00:11"]
[BlackClock "0:00:02"]

1. d4 {[%clk 0:03:00]}  Nf6 {[%clk 0:02:59]} 2. c4 {[%clk 0:03:01]}  e6 {[%clk 0:03:00]} 3. Nc3 {[%clk 0:03:02]}  d5 {[%clk 0:03:00]} 4. Nf3 {[%clk 0:02:59]}  Be7 {[%clk 0:02:59]} 5. g3 {[%clk 0:02:58]}  O-O {[%clk 0:02:54]} 6. Bg2 {[%clk 0:02:59]}  dxc4 {[%clk 0:02:50]} 7. Ne5 {[%clk 0:02:59]}  Nc6 {[%clk 0:02:48]} 8. Bxc6 {[%clk 0:02:58]}  bxc6 {[%clk 0:02:49]} 9. Nxc6 {[%clk 0:02:59]}  Qe8 {[%clk 0:02:49]} 10. Nxe7+ {[%clk 0:03:00]}  Qxe7 {[%clk 0:02:50]} 11. Qa4 {[%clk 0:03:00]}  c5 {[%clk 0:02:50]} 12. dxc5 {[%clk 0:03:00]}  Qxc5 {[%clk 0:02:49]} 13. Be3 {[%clk 0:03:00]}  Qc7 {[%clk 0:02:39]} 14. O-O-O {[%clk 0:03:00]}  Bb7 {[%clk 0:02:35]} 15. f3 {[%clk 0:02:59]}  a6 {[%clk 0:02:27]} 16. Bd4 {[%clk 0:02:37]}  e5 {[%clk 0:02:21]} 17. Be3 {[%clk 0:02:37]}  Rfd8 {[%clk 0:02:04]} 18. Bg5 {[%clk 0:02:34]}  Rxd1+ {[%clk 0:01:43]} 19. Rxd1 {[%clk 0:02:34]}  Rd8 {[%clk 0:01:44]} 20. Bxf6 {[%clk 0:02:33]}  Rxd1+ {[%clk 0:01:42]} 21. Qxd1 {[%clk 0:02:17]}  gxf6 {[%clk 0:01:41]} 22. Qg1 {[%clk 0:02:16]}  Kg7 {[%clk 0:01:27]} 23. g4 {[%clk 0:02:12]}  Qd6 {[%clk 0:01:18]} 24. Qa7 {[%clk 0:02:03]}  Bc8 {[%clk 0:01:10]} 25. Ne4 {[%clk 0:01:56]}  Qd4 {[%clk 0:01:06]} 26. Qxd4 {[%clk 0:01:34]}  exd4 {[%clk 0:01:07]} 27. Nd6 {[%clk 0:01:30]}  Be6 {[%clk 0:01:06]} 28. a3 {[%clk 0:01:29]}  h5 {[%clk 0:01:03]} 29. Ne8+ {[%clk 0:00:58]}  Kg6 {[%clk 0:00:22]} 30. gxh5+ {[%clk 0:00:59]}  Kxh5 {[%clk 0:00:19]} 31. Nxf6+ {[%clk 0:00:59]}  Kh4 {[%clk 0:00:20]} 32. Kd2 {[%clk 0:00:30]}  Kh3 {[%clk 0:00:21]} 33. Ne4 {[%clk 0:00:30]}  Kxh2 {[%clk 0:00:20]} 34. Nc5 {[%clk 0:00:29]}  Bc8 {[%clk 0:00:19]} 35. e3 {[%clk 0:00:22]}  dxe3+ {[%clk 0:00:19]} 36. Kxe3 {[%clk 0:00:22]}  Kg2 {[%clk 0:00:20]} 37. Ne4 {[%clk 0:00:20]}  Be6 {[%clk 0:00:19]} 38. Nc5 {[%clk 0:00:15]}  Bc8 {[%clk 0:00:18]} 39. f4 {[%clk 0:00:15]}  Kg3 {[%clk 0:00:10]} 40. Ne4+ {[%clk 0:00:15]}  Kg4 {[%clk 0:00:11]} 41. Nd6 {[%clk 0:00:14]}  Be6 {[%clk 0:00:11]} 42. Ke4 {[%clk 0:00:15]}  Bd7 {[%clk 0:00:04]} 43. Nxf7 {[%clk 0:00:13]}  Bc6+ {[%clk 0:00:02]} 44. Ke5 {[%clk 0:00:11]}  Kf3 {[%clk 0:00:02]} 45. Nd6 {[%clk 0:00:11]} 1-0


[Site "https://www.chess.com"]

[Event "Titled Tuesday Blitz February 21 Early 2023"]
[White "Golubka, Petro"]
[Black "Kovalenko, Igor"]
[WhiteFideId "14114224"]
[BlackFideId "14117908"]
[WhiteElo "2371"]
[BlackElo "2674"]
[Result "0-1"]
[Round "09"]
[TimeControl "180+2"]
[Date "2023.02.21"]
[WhiteClock "0:00:15"]
[BlackClock "0:00:25"]

1. e4 {[%clk 0:02:58]}  e5 {[%clk 0:02:59]} 2. Bb5 {[%clk 0:02:56]}  Nf6 {[%clk 0:02:58]} 3. Nc3 {[%clk 0:02:55]}  Bb4 {[%clk 0:02:57]} 4. f4 {[%clk 0:02:52]}  Bxc3 {[%clk 0:02:56]} 5. bxc3 {[%clk 0:02:51]}  Nxe4 {[%clk 0:02:54]} 6. Qf3 {[%clk 0:02:37]}  Nd6 {[%clk 0:02:54]} 7. fxe5 {[%clk 0:02:36]}  Nxb5 {[%clk 0:02:54]} 8. a4 {[%clk 0:02:35]}  Nxc3 {[%clk 0:02:33]} 9. Qxc3 {[%clk 0:02:32]}  Qh4+ {[%clk 0:02:32]} 10. Kf1 {[%clk 0:02:26]}  O-O {[%clk 0:02:26]} 11. Nf3 {[%clk 0:02:18]}  Qd8 {[%clk 0:02:24]} 12. Bb2 {[%clk 0:02:09]}  Nc6 {[%clk 0:02:18]} 13. h4 {[%clk 0:01:55]}  f6 {[%clk 0:02:15]} 14. Qc4+ {[%clk 0:01:50]}  d5 {[%clk 0:02:12]} 15. exd6+ {[%clk 0:01:50]}  Kh8 {[%clk 0:02:11]} 16. dxc7 {[%clk 0:01:48]}  Qxc7 {[%clk 0:02:11]} 17. h5 {[%clk 0:01:48]}  h6 {[%clk 0:01:47]} 18. Nh4 {[%clk 0:01:33]}  Qf7 {[%clk 0:01:34]} 19. Ng6+ {[%clk 0:01:32]}  Kg8 {[%clk 0:01:33]} 20. Rh4 {[%clk 0:01:15]}  Be6 {[%clk 0:01:29]} 21. Qe2 {[%clk 0:01:03]}  Rfe8 {[%clk 0:01:29]} 22. Qf2 {[%clk 0:01:01]}  Rad8 {[%clk 0:01:23]} 23. d3 {[%clk 0:01:00]}  Rd5 {[%clk 0:01:23]} 24. Kg1 {[%clk 0:00:50]}  Rf5 {[%clk 0:01:22]} 25. Qg3 {[%clk 0:00:44]}  Rg5 {[%clk 0:01:22]} 26. Qf2 {[%clk 0:00:42]}  Ne7 {[%clk 0:01:16]} 27. Nf4 {[%clk 0:00:40]}  Bd7 {[%clk 0:01:10]} 28. a5 {[%clk 0:00:37]}  a6 {[%clk 0:01:09]} 29. c4 {[%clk 0:00:32]}  Nf5 {[%clk 0:01:07]} 30. Rh3 {[%clk 0:00:31]}  Bc6 {[%clk 0:01:06]} 31. Kh2 {[%clk 0:00:22]}  Rg4 {[%clk 0:01:01]} 32. Rc1 {[%clk 0:00:19]}  Qc7 {[%clk 0:01:00]} 33. g3 {[%clk 0:00:19]}  Rg5 {[%clk 0:00:49]} 34. Re1 {[%clk 0:00:16]}  Qd7 {[%clk 0:00:41]} 35. Rxe8+ {[%clk 0:00:16]}  Qxe8 {[%clk 0:00:42]} 36. Bc1 {[%clk 0:00:16]}  Qd7 {[%clk 0:00:35]} 37. Be3 {[%clk 0:00:15]}  Nxe3 {[%clk 0:00:27]} 38. Qxe3 {[%clk 0:00:16]}  Rxa5 {[%clk 0:00:28]} 39. g4 {[%clk 0:00:15]}  Qxg4 {[%clk 0:00:25]} 40. Rg3 {[%clk 0:00:15]}  Ra2+ {[%clk 0:00:25]} 41. Kg1 {[%clk 0:00:15]}  Qd1+ {[%clk 0:00:25]} 0-1


[Site "https://www.chess.com"]

[Event "Titled Tuesday Blitz February 21 Early 2023"]
[White "Indjic, Aleksandar"]
[Black "Real_OceanStorm"]
[WhiteFideId "911925"]
[WhiteElo "2618"]
[BlackElo "2781"]
[Result "0-1"]
[Round "09"]
[TimeControl "180+2"]
[Date "2023.02.21"]
[WhiteClock "0:00:02"]
[BlackClock "0:00:02"]

1. d4 {[%clk 0:03:00]}  Nf6 {[%clk 0:02:57]} 2. c4 {[%clk 0:03:01]}  e6 {[%clk 0:02:58]} 3. Nc3 {[%clk 0:03:01]}  d5 {[%clk 0:02:58]} 4. Nf3 {[%clk 0:03:00]}  c5 {[%clk 0:02:58]} 5. cxd5 {[%clk 0:02:58]}  Nxd5 {[%clk 0:02:57]} 6. e4 {[%clk 0:02:57]}  Nxc3 {[%clk 0:02:55]} 7. bxc3 {[%clk 0:02:58]}  cxd4 {[%clk 0:02:55]} 8. cxd4 {[%clk 0:02:59]}  Be7 {[%clk 0:02:55]} 9. Bc4 {[%clk 0:02:51]}  O-O {[%clk 0:02:55]} 10. O-O {[%clk 0:02:50]}  Nd7 {[%clk 0:02:55]} 11. a4 {[%clk 0:02:48]}  b6 {[%clk 0:02:55]} 12. Qe2 {[%clk 0:02:47]}  Bb7 {[%clk 0:02:55]} 13. Bd2 {[%clk 0:02:43]}  Rc8 {[%clk 0:02:50]} 14. Bd3 {[%clk 0:02:43]}  h6 {[%clk 0:02:44]} 15. a5 {[%clk 0:02:43]}  Re8 {[%clk 0:02:42]} 16. Bb5 {[%clk 0:02:37]}  Bc6 {[%clk 0:02:42]} 17. Ba6 {[%clk 0:02:32]}  Rc7 {[%clk 0:02:29]} 18. Bf4 {[%clk 0:02:31]}  e5 {[%clk 0:02:14]} 19. dxe5 {[%clk 0:02:02]}  Nc5 {[%clk 0:01:49]} 20. e6 {[%clk 0:02:02]}  Bd6 {[%clk 0:01:37]} 21. e5 {[%clk 0:01:46]}  Nxe6 {[%clk 0:01:21]} 22. Bg3 {[%clk 0:00:45]}  Bc5 {[%clk 0:01:17]} 23. axb6 {[%clk 0:00:44]}  axb6 {[%clk 0:01:17]} 24. Rfd1 {[%clk 0:00:44]}  Rd7 {[%clk 0:01:02]} 25. Bc4 {[%clk 0:00:43]}  Qc8 {[%clk 0:00:38]} 26. Rxd7 {[%clk 0:00:39]}  Qxd7 {[%clk 0:00:39]} 27. Rd1 {[%clk 0:00:36]}  Qe7 {[%clk 0:00:38]} 28. Bd3 {[%clk 0:00:28]}  Rd8 {[%clk 0:00:20]} 29. Bb1 {[%clk 0:00:24]}  Rxd1+ {[%clk 0:00:19]} 30. Qxd1 {[%clk 0:00:25]}  b5 {[%clk 0:00:10]} 31. h4 {[%clk 0:00:23]}  Qa7 {[%clk 0:00:09]} 32. Qc2 {[%clk 0:00:20]}  Qa3 {[%clk 0:00:04]} 33. Qh7+ {[%clk 0:00:14]}  Kf8 {[%clk 0:00:05]} 34. Be4 {[%clk 0:00:14]}  Bxe4 {[%clk 0:00:05]} 35. Qxe4 {[%clk 0:00:14]}  b4 {[%clk 0:00:05]} 36. Qb7 {[%clk 0:00:09]}  g6 {[%clk 0:00:03]} 37. h5 {[%clk 0:00:08]}  gxh5 {[%clk 0:00:03]} 38. Nh4 {[%clk 0:00:09]}  Qd3 {[%clk 0:00:03]} 39. Kh2 {[%clk 0:00:08]}  Kg8 {[%clk 0:00:02]} 40. f4 {[%clk 0:00:06]}  b3 {[%clk 0:00:03]} 41. f5 {[%clk 0:00:06]}  Nf8 {[%clk 0:00:03]} 42. e6 {[%clk 0:00:06]}  fxe6 {[%clk 0:00:03]} 43. f6 {[%clk 0:00:07]}  Nd7 {[%clk 0:00:03]} 44. Nf3 {[%clk 0:00:04]}  h4 {[%clk 0:00:02]} 45. Bxh4 {[%clk 0:00:04]}  Qd5 {[%clk 0:00:02]} 46. f7+ {[%clk 0:00:03]}  Kxf7 {[%clk 0:00:02]} 47. Qc8 {[%clk 0:00:02]}  b2 {[%clk 0:00:02]} 0-1


[Site "https://www.chess.com"]

[Event "Titled Tuesday Blitz February 21 Early 2023"]
[White "Talibov, Shiroghlan"]
[Black "Vokhidov, Shamsiddin"]
[WhiteFideId "13429078"]
[BlackFideId "14204223"]
[WhiteElo "2359"]
[BlackElo "2586"]
[Result "1/2-1/2"]
[Round "09"]
[TimeControl "180+2"]
[Date "2023.02.21"]
[WhiteClock "0:00:17"]
[BlackClock "0:00:32"]

1. e4 {[%clk 0:03:00]}  Nf6 {[%clk 0:03:00]} 2. e5 {[%clk 0:02:58]}  Nd5 {[%clk 0:03:01]} 3. d4 {[%clk 0:02:59]}  d6 {[%clk 0:03:01]} 4. Nf3 {[%clk 0:02:56]}  dxe5 {[%clk 0:03:01]} 5. Nxe5 {[%clk 0:02:54]}  c6 {[%clk 0:03:02]} 6. Bd3 {[%clk 0:02:51]}  g6 {[%clk 0:02:47]} 7. h4 {[%clk 0:02:49]}  Nd7 {[%clk 0:02:43]} 8. h5 {[%clk 0:02:48]}  Nxe5 {[%clk 0:02:41]} 9. dxe5 {[%clk 0:02:46]}  Bg7 {[%clk 0:02:39]} 10. hxg6 {[%clk 0:02:46]}  hxg6 {[%clk 0:02:39]} 11. Rxh8+ {[%clk 0:02:45]}  Bxh8 {[%clk 0:02:40]} 12. Qe2 {[%clk 0:02:45]}  Nb4 {[%clk 0:02:38]} 13. Bc4 {[%clk 0:02:41]}  Bf5 {[%clk 0:02:35]} 14. Bb3 {[%clk 0:02:35]}  Qa5 {[%clk 0:02:23]} 15. Bd2 {[%clk 0:02:27]}  Qc5 {[%clk 0:02:22]} 16. Bxb4 {[%clk 0:02:08]}  Qxb4+ {[%clk 0:02:23]} 17. Nd2 {[%clk 0:02:05]}  O-O-O {[%clk 0:02:19]} 18. O-O-O {[%clk 0:02:03]}  e6 {[%clk 0:01:57]} 19. Nc4 {[%clk 0:01:54]}  Rxd1+ {[%clk 0:01:47]} 20. Qxd1 {[%clk 0:01:46]}  Bxe5 {[%clk 0:01:47]} 21. Nxe5 {[%clk 0:01:10]}  Qf4+ {[%clk 0:01:46]} 22. Qd2 {[%clk 0:01:10]}  Qxe5 {[%clk 0:01:47]} 23. g3 {[%clk 0:01:05]}  Kc7 {[%clk 0:01:44]} 24. a3 {[%clk 0:01:02]}  g5 {[%clk 0:01:42]} 25. Kb1 {[%clk 0:01:01]}  Be4 {[%clk 0:01:38]} 26. Ka2 {[%clk 0:00:59]}  Bd5 {[%clk 0:01:37]} 27. c4 {[%clk 0:00:59]}  Bf3 {[%clk 0:01:36]} 28. Qd3 {[%clk 0:00:57]}  Qe4 {[%clk 0:01:32]} 29. Qc3 {[%clk 0:00:52]}  e5 {[%clk 0:01:27]} 30. Bc2 {[%clk 0:00:49]}  Qe2 {[%clk 0:01:23]} 31. Bd3 {[%clk 0:00:48]}  Qxf2 {[%clk 0:01:19]} 32. Qxe5+ {[%clk 0:00:46]}  Kb6 {[%clk 0:01:19]} 33. Qxg5 {[%clk 0:00:46]}  Qd4 {[%clk 0:01:15]} 34. Qf5 {[%clk 0:00:29]}  Bg4 {[%clk 0:01:10]} 35. c5+ {[%clk 0:00:21]}  Kc7 {[%clk 0:00:58]} 36. Qxf7+ {[%clk 0:00:21]}  Kd8 {[%clk 0:00:54]} 37. Qf8+ {[%clk 0:00:17]}  Kd7 {[%clk 0:00:52]} 38. Bf5+ {[%clk 0:00:17]}  Bxf5 {[%clk 0:00:51]} 39. Qxf5+ {[%clk 0:00:18]}  Ke7 {[%clk 0:00:48]} 40. Qh7+ {[%clk 0:00:17]}  Ke6 {[%clk 0:00:44]} 41. Qxb7 {[%clk 0:00:17]}  Qxc5 {[%clk 0:00:44]} 42. Qb3+ {[%clk 0:00:18]}  Kd7 {[%clk 0:00:43]} 43. Qd3+ {[%clk 0:00:18]}  Ke6 {[%clk 0:00:42]} 44. g4 {[%clk 0:00:18]}  Kf6 {[%clk 0:00:40]} 45. Kb3 {[%clk 0:00:17]}  Kg5 {[%clk 0:00:40]} 46. Qf5+ {[%clk 0:00:15]}  Qxf5 {[%clk 0:00:40]} 47. gxf5 {[%clk 0:00:16]}  Kxf5 {[%clk 0:00:41]} 48. Kc4 {[%clk 0:00:17]}  Ke6 {[%clk 0:00:40]} 49. Kb4 {[%clk 0:00:14]}  Kd6 {[%clk 0:00:28]} 50. Ka5 {[%clk 0:00:11]}  Kc7 {[%clk 0:00:28]} 51. Ka6 {[%clk 0:00:12]}  Kb8 {[%clk 0:00:28]} 52. b3 {[%clk 0:00:08]}  Ka8 {[%clk 0:00:28]} 53. Ka5 {[%clk 0:00:08]}  Kb8 {[%clk 0:00:29]} 54. Kb4 {[%clk 0:00:08]}  Kb7 {[%clk 0:00:29]} 55. Kc5 {[%clk 0:00:09]}  Kc7 {[%clk 0:00:29]} 56. b4 {[%clk 0:00:09]}  Kd7 {[%clk 0:00:29]} 57. a4 {[%clk 0:00:08]}  Kc7 {[%clk 0:00:30]} 58. Kd4 {[%clk 0:00:08]}  Kd6 {[%clk 0:00:29]} 59. Kc4 {[%clk 0:00:09]}  Kd7 {[%clk 0:00:26]} 60. Kc5 {[%clk 0:00:09]}  Kc7 {[%clk 0:00:27]} 61. b5 {[%clk 0:00:08]}  cxb5 {[%clk 0:00:26]} 62. Kxb5 {[%clk 0:00:09]}  Kb7 {[%clk 0:00:26]} 63. Ka5 {[%clk 0:00:08]}  a6 {[%clk 0:00:25]} 64. Kb4 {[%clk 0:00:09]}  Kb6 {[%clk 0:00:26]} 65. a5+ {[%clk 0:00:09]}  Kb7 {[%clk 0:00:26]} 66. Kc4 {[%clk 0:00:10]}  Kc6 {[%clk 0:00:26]} 67. Kd4 {[%clk 0:00:10]}  Kb5 {[%clk 0:00:26]} 68. Kc3 {[%clk 0:00:11]}  Kxa5 {[%clk 0:00:27]} 69. Kb2 {[%clk 0:00:12]}  Kb4 {[%clk 0:00:27]} 70. Ka1 {[%clk 0:00:13]}  a5 {[%clk 0:00:28]} 71. Kb1 {[%clk 0:00:14]}  a4 {[%clk 0:00:29]} 72. Ka1 {[%clk 0:00:15]}  a3 {[%clk 0:00:30]} 73. Kb1 {[%clk 0:00:16]}  Kb3 {[%clk 0:00:31]} 74. Ka1 {[%clk 0:00:17]}  a2 {[%clk 0:00:32]} 1/2-1/2


[Site "https://www.chess.com"]